bitfinex/quotes_ETHUSD_20250523
["timestamp","ask_amount","ask_price","bid_price","bid_amount"]
[1748012073568,4.70636689,2581.4,2581.3,16.711]
[1748012073725,3.87536815,2580.4,2580.3,1.21622754]
[1748012073926,3.87536815,2580.4,2580.3,28.51622754]
[1748012074142,3.87515699,2580.6,2580.3,28.51622754]
[1748012074341,3.87483726,2580.8,2580.4,27.301]
[1748012074546,0.8325,2581.2,2580.4,27.301]
[1748012074872,3.87466117,2580.9,2580.4,27.301]
[1748012075052,4.70669909,2581.2,2580.4,27.301]
[1748012075226,3.87499086,2580.7,2580.4,27.301]
[1748012075427,4.70669702,2581.2,2580.4,27.301]
[1748012075626,3.87494211,2580.7,2580.4,27.301]
[1748012075872,3.87493973,2580.7,2580.4,27.301]
[1748012076367,3.87484406,2580.8,2580.5,16.712]
[1748012076573,3.87505549,2580.7,2580.5,16.712]
[1748012076758,3.87506781,2580.6,2580.5,16.712]
[1748012077270,3.87498791,2580.7,2580.5,16.712]
[1748012077828,3.87506781,2580.6,2580.5,16.712]
[1748012078025,3.87506781,2580.6,2580.5,28.319]
[1748012079035,3.87506781,2580.6,2580.5,16.712]
[1748012079238,4.65006756,2580.6,2580.5,44.017]
[1748012079436,4.65006756,2580.6,2580.5,32.41]
[1748012080977,4.65006756,2580.6,2580.5,16.712]
[1748012081163,5.47226756,2580.6,2580.5,32.398]
[1748012081980,4.69726781,2580.6,2580.5,32.398]
[1748012083579,4.69726781,2580.6,2580.5,16.712]
[1748012083874,4.65911922,2579.9,2579.8,28.329]
[1748012084077,4.65911922,2579.9,2579.8,15.688]
[1748012084264,5.12503114,2579.9,2579.8,15.688]
[1748012084577,3.87602699,2580.0,2579.8,15.688]
[1748012084933,3.87611922,2579.9,2579.8,15.688]
[1748012085578,3.87607785,2580.0,2579.8,15.688]
[1748012085784,3.87590257,2580.1,2579.9,11.61]
[1748012085958,3.87596899,2580.0,2579.9,11.61]
[1748012086436,3.87590425,2580.1,2579.9,28.329]
[1748012086637,3.87573995,2580.2,2579.9,28.329]
[1748012086958,0.7905,2580.4,2579.9,28.329]
[1748012087177,3.87596899,2580.0,2579.9,28.329]
[1748012087980,3.87584914,2580.1,2579.9,16.719]
[1748012088195,3.87584914,2580.1,2579.9,28.331]
[1748012088357,3.87551835,2580.3,2579.9,28.331]
[1748012088556,0.7905,2580.4,2579.9,28.331]
[1748012088799,3.87596899,2580.0,2579.9,16.719]
[1748012088941,3.87596899,2580.0,2579.9,28.331]
[1748012089672,4.64936899,2580.0,2579.9,16.719]
[1748012093713,0.7698,2580.3,2579.9,16.719]
[1748012093876,3.87467026,2580.9,2579.9,16.719]
[1748012093877,0.7698,2580.9,2580.0,0.03875829]
[1748012094208,3.87561155,2580.3,2580.0,8.0]
[1748012094579,3.87577143,2580.2,2580.0,8.0]
[1748012094789,4.64443083,2580.9,2579.9,16.719]
[1748012094978,3.87587213,2580.1,2579.9,16.719]
[1748012095292,3.87562834,2580.3,2579.9,16.719]
[1748012095493,3.87529747,2580.5,2579.9,16.719]
[1748012095660,3.87543537,2580.4,2579.9,20.59504717]
[1748012096088,3.87557214,2580.3,2579.9,16.719]
[1748012096282,3.87596899,2580.0,2579.9,16.719]
[1748012096500,3.87596899,2580.0,2579.9,44.026]
[1748012096657,3.87596899,2580.0,2579.9,16.719]
[1748012096861,4.65115048,2580.0,2579.9,32.412]
[1748012097257,3.87596899,2580.0,2579.9,32.412]
[1748012100816,3.87595235,2580.1,2579.9,32.412]
[1748012101095,3.87596899,2580.0,2579.9,16.719]
[1748012101314,3.87596899,2580.0,2579.9,32.412]
[1748012102206,0.8033,2580.3,2579.9,32.412]
[1748012102407,4.42459316,2581.0,2579.9,32.412]
[1748012102408,3.87590884,2580.1,2579.9,32.412]
[1748012102567,0.7673,2580.6,2579.9,32.412]
[1748012102773,3.87591393,2580.1,2579.9,32.412]
[1748012102984,3.87577305,2580.2,2579.9,32.412]
[1748012103271,3.87596899,2580.0,2579.9,32.412]
[1748012103471,3.8758903,2580.1,2579.9,32.412]
[1748012103705,3.87562352,2580.3,2579.9,32.412]
[1748012103915,3.87558635,2580.3,2579.9,32.412]
[1748012104212,3.87575729,2580.2,2579.9,32.412]
[1748012104519,3.87565272,2580.3,2579.9,32.412]
[1748012104807,3.87558604,2580.3,2579.9,32.412]
[1748012105010,3.87552941,2580.3,2579.9,32.412]
[1748012105496,3.87583542,2580.1,2579.9,32.412]
[1748012106005,3.87575591,2580.2,2579.9,32.412]
[1748012106164,3.87584798,2580.1,2579.9,32.412]
[1748012106368,3.87573315,2580.2,2579.9,32.412]
[1748012106618,3.87560644,2580.3,2579.9,36.28808868]
[1748012106778,0.7896,2580.8,2580.0,8.0]
[1748012107102,3.87491765,2580.7,2580.1,3.8757358]
[1748012107314,3.87532858,2580.5,2580.0,11.87590817]
[1748012107821,3.87544069,2580.4,2580.0,8.0]
[1748012108118,3.87523777,2580.5,2580.1,11.614]
[1748012108322,3.87504879,2580.7,2580.2,3.87554251]
[1748012108540,0.7896,2580.8,2580.2,3.87554251]
[1748012108541,3.87446726,2581.0,2580.2,8.0]
[1748012108699,3.87498755,2580.7,2580.2,11.87558309]
[1748012108897,0.7934,2581.1,2580.2,8.0]
[1748012109102,4.66776362,2581.1,2580.2,8.0]
[1748012109316,4.66776362,2581.1,2579.9,16.719]
[1748012109317,3.87596899,2580.0,2579.9,16.719]
[1748012109525,3.87596899,2580.0,2579.9,32.412]
[1748012109727,3.87590358,2580.1,2579.9,32.412]
[1748012109937,3.87590702,2580.1,2579.9,32.412]
[1748012110142,3.87573912,2580.2,2579.9,32.412]
[1748012110514,3.87584341,2580.1,2579.9,32.412]
[1748012110710,3.87573912,2580.2,2579.9,32.412]
[1748012110923,3.87581876,2580.1,2579.9,32.412]
[1748012111128,3.87596899,2580.0,2579.9,32.412]
[1748012111529,3.8758339,2580.1,2579.9,32.412]
[1748012112038,3.87596899,2580.0,2579.9,32.412]
[1748012112223,4.26355238,2580.0,2579.9,32.412]
[1748012113146,3.875898,2580.1,2579.9,32.412]
[1748012113446,0.7934,2580.5,2579.9,32.412]
[1748012113607,3.87596899,2580.0,2579.9,32.412]
[1748012113803,3.87582445,2580.1,2579.9,32.412]
[1748012114002,3.87596899,2580.0,2579.9,32.412]
[1748012114226,3.87596899,2580.0,2579.9,16.719]
[1748012114444,4.65115047,2580.0,2579.9,44.01]
[1748012114838,5.47485047,2580.0,2579.9,16.719]
[1748012115037,5.47485047,2580.0,2579.9,32.396]
[1748012116819,8.34685047,2580.0,2579.9,32.396]
[1748012117025,6.02485047,2580.0,2579.9,32.396]
[1748012118747,5.47485047,2580.0,2579.9,32.396]
[1748012121396,4.69966899,2580.0,2579.9,32.396]
[1748012121857,3.87596899,2580.0,2579.9,32.396]
[1748012123290,3.87552515,2580.3,2579.9,32.396]
[1748012123452,3.8757892,2580.2,2580.0,11.616]
[1748012123652,0.8206,2580.5,2580.1,15.679]
[1748012123891,0.8206,2580.5,2579.2,3.87708355]
[1748012123892,3.87650676,2579.7,2579.2,3.87708355]
[1748012124093,3.87536815,2580.4,2579.3,15.679]
[1748012124391,3.87598094,2580.0,2579.3,19.55601293]
[1748012124693,3.87609895,2580.0,2579.4,3.8767545]
[1748012124898,11.87616828,2579.9,2579.5,11.616]
[1748012125187,8.0,2580.0,2579.6,3.87649653]
[1748012125393,3.87614136,2579.9,2579.5,11.616]
[1748012125590,3.87536815,2580.4,2579.5,11.616]
[1748012125758,3.87634554,2579.8,2579.5,11.616]
[1748012126087,3.8763341,2579.8,2579.5,11.616]
[1748012126299,3.87606125,2580.0,2579.6,16.727]
[1748012126514,3.8754659,2580.4,2579.6,16.727]
[1748012126688,3.87560221,2580.3,2579.8,3.87626321]
[1748012126869,0.7943,2580.8,2579.9,15.678]
[1748012127071,4.66847619,2581.2,2580.3,3.87545312]
[1748012127288,0.32409239,2581.1,2580.4,15.71674732]
[1748012127463,3.87449286,2581.0,2580.5,15.49111087]
[1748012127660,8.32409239,2581.1,2580.6,16.727]
[1748012127864,3.87491765,2580.7,2580.6,16.727]
[1748012128158,3.87491765,2580.7,2580.6,44.021]
[1748012128362,3.87491765,2580.7,2580.6,16.727]
[1748012128564,12.64989378,2580.7,2580.6,32.403]
[1748012128876,11.87491765,2580.7,2580.6,32.403]
[1748012130264,11.87491765,2580.7,2580.6,16.727]
[1748012130463,11.87491765,2580.7,2580.6,32.403]
[1748012131111,4.64836752,2581.0,2580.6,32.403]
[1748012131278,3.87445004,2581.1,2580.6,36.27806275]
[1748012131606,0.8021,2581.6,2580.6,32.403]
[1748012131809,4.19788723,2581.5,2581.0,3.87437962]
[1748012132107,0.8021,2582.0,2581.1,27.32873859]
[1748012132108,0.32409239,2581.4,2581.1,27.32873859]
[1748012132264,0.32409239,2581.4,2581.2,27.29]
[1748012132564,0.32409239,2581.4,2581.3,15.676]
[1748012132765,4.19795928,2581.4,2581.3,15.676]
[1748012133462,0.32409239,2581.4,2581.3,15.676]
[1748012134194,4.19795928,2581.4,2581.3,15.676]
[1748012134670,4.19795928,2581.4,2580.7,3.8748101]
[1748012134671,1.93126323,2581.4,2580.6,20.60200087]
[1748012134889,3.87427853,2581.2,2580.7,31.15991739]
[1748012135293,11.87391222,2581.4,2580.8,3.87462623]
[1748012135478,3.87413878,2581.3,2580.9,3.87461005]
[1748012135684,8.0,2581.5,2581.0,3.87446197]
[1748012135885,11.8737987,2581.5,2580.8,3.87472615]
[1748012136188,3.87410199,2581.3,2580.8,3.87468971]
[1748012136386,11.87380495,2581.5,2580.9,3.8746016]
[1748012136586,3.87403738,2581.3,2580.8,3.87470806]
[1748012137373,3.87388082,2581.4,2580.9,3.87454402]
[1748012137719,3.87406348,2581.3,2580.8,3.87470806]
[1748012137922,8.0,2581.5,2580.7,27.285]
[1748012138102,8.0,2581.3,2581.0,3.87443866]
[1748012138271,3.87387374,2581.4,2580.9,3.87454644]
[1748012138467,8.0,2581.4,2581.0,3.87444129]
[1748012138713,3.87403281,2581.3,2580.9,3.87460714]
[1748012139212,11.87394022,2581.4,2580.9,3.87460714]
[1748012139501,11.87391192,2581.4,2580.8,3.87476481]
[1748012139702,3.87403614,2581.3,2580.8,3.87466092]
[1748012139916,3.87402071,2581.3,2580.9,3.87459951]
[1748012140143,3.87402071,2581.3,2580.8,3.87469653]
[1748012140323,8.0,2581.4,2580.8,3.87469653]
[1748012140514,11.87395055,2581.4,2580.9,3.87452844]
[1748012140715,8.0,2581.4,2581.0,3.87440758]
[1748012140918,3.87377134,2581.5,2581.0,3.87440758]
[1748012141451,3.87387617,2581.4,2580.9,3.87454384]
[1748012141747,11.8737654,2581.5,2581.0,3.87436171]
[1748012141916,3.87334991,2581.8,2581.3,3.87393582]
[1748012142119,3.87342482,2581.7,2581.4,27.263]
[1748012142431,8.0,2581.7,2581.5,15.653]
[1748012142621,11.87348676,2581.7,2581.6,16.719]
[1748012144146,12.67788676,2581.7,2581.6,32.37]
[1748012149938,12.67788676,2581.7,2581.6,43.979]
[1748012150120,14.3330049,2581.7,2581.6,43.979]
[1748012150323,14.3330049,2581.7,2581.6,32.37]
[1748012150561,14.3330049,2581.7,2581.6,16.719]
[1748012150707,17.2080049,2581.7,2581.6,32.37]
[1748012151048,12.70646726,2581.0,2580.9,16.73308]
[1748012151253,4.70646726,2581.0,2580.9,32.38408]
[1748012151459,3.87446726,2581.0,2580.9,32.38408]
[1748012152466,4.6493487,2581.0,2580.9,32.38408]
[1748012152660,13.4498487,2581.0,2580.9,32.38408]
[1748012152817,17.6603343,2581.0,2580.9,32.38408]
[1748012153345,29.8203343,2581.0,2580.9,32.38408]
[1748012154073,13.9998487,2581.0,2580.9,32.38408]
[1748012154233,25.6098487,2581.0,2580.9,32.38408]
[1748012155127,13.9998487,2581.0,2580.9,32.38408]
[1748012155332,5.4498487,2581.0,2580.9,32.38408]
[1748012155647,8.3248487,2581.0,2580.9,32.38408]
[1748012155860,18.5948487,2581.0,2580.9,32.38408]
[1748012156064,22.8053343,2581.0,2580.9,32.38408]
[1748012157034,30.8053343,2581.0,2580.9,32.38408]
[1748012157240,4.68626815,2580.4,2580.3,11.611]
[1748012157551,4.68626815,2580.4,2579.6,0.0161]
[1748012157552,3.87629624,2579.8,2579.6,0.0161]
[1748012157733,3.87603478,2580.0,2579.7,27.265]
[1748012157931,0.8044,2580.6,2579.7,27.265]
[1748012158187,11.04488144,2581.0,2579.7,27.265]
[1748012158188,3.87555861,2580.3,2579.8,3.89228881]
[1748012158387,0.8044,2580.9,2579.8,0.0161]
[1748012158537,3.87581751,2580.2,2579.8,8.0161]
[1748012158737,3.8754806,2580.4,2580.0,0.0161]
[1748012158938,3.87558768,2580.3,2580.1,11.612]
[1748012159173,3.87551835,2580.3,2580.2,15.655]
[1748012160281,3.87537694,2580.4,2580.0,0.0161]
[1748012160487,4.67916031,2580.9,2580.0,0.0161]
[1748012160488,3.87581876,2580.1,2580.0,0.0161]
[1748012160691,3.8755359,2580.3,2580.0,27.2831]
[1748012160989,3.87581876,2580.1,2580.0,27.2831]
[1748012161340,3.87491765,2580.7,2580.0,27.2831]
[1748012161541,3.87581876,2580.1,2580.0,27.2831]
[1748012162040,3.87579651,2580.2,2580.0,27.2831]
[1748012162437,3.87569836,2580.2,2580.0,27.2831]
[1748012162640,3.8750912,2580.6,2580.0,27.2831]
[1748012162857,3.87640707,2579.8,2579.5,0.0161]
[1748012163058,3.87640707,2579.8,2579.6,15.656]
[1748012163059,3.87641973,2579.7,2579.6,15.656]
[1748012164944,3.87641973,2579.7,2579.6,27.27]
[1748012165445,3.87720109,2579.2,2579.0,0.0161]
[1748012165779,3.87720109,2579.2,2579.1,27.272]
[1748012166274,3.87693414,2579.4,2579.1,27.272]
[1748012166275,0.38764071,2579.8,2579.1,43.997]
[1748012166473,0.7604,2580.1,2579.1,43.997]
[1748012166674,3.87676124,2579.5,2579.1,43.997]
[1748012166880,3.87650561,2579.7,2579.3,0.0161]
[1748012167086,3.87687059,2579.4,2579.3,0.0161]
[1748012167246,3.87596899,2580.0,2579.3,0.0161]
[1748012167447,3.876724,2579.5,2579.3,0.0161]
[1748012168258,3.87673449,2579.5,2579.3,0.0161]
[1748012168782,3.87668359,2579.6,2579.3,0.0161]
[1748012169189,0.8113,2580.3,2579.3,0.0161]
[1748012169487,3.87513086,2580.6,2579.8,0.0161]
[1748012169696,0.77488144,2581.0,2580.1,3.87581876]
[1748012169697,0.8329,2581.0,2580.1,3.87581876]
[1748012169859,0.32409239,2580.9,2580.3,8.0]
[1748012170191,0.32409239,2580.9,2580.5,3.87521798]
[1748012170347,3.87476751,2580.8,2580.5,8.0161]
[1748012170548,0.32409239,2580.8,2580.5,8.0161]
[1748012170754,0.32409239,2580.8,2580.5,11.89122099]
[1748012170968,0.32409239,2580.8,2580.5,11.89126968]
[1748012171486,0.32409239,2580.8,2580.6,3.87493491]
[1748012171847,0.7918,2581.8,2581.1,3.87420257]
[1748012172043,10.27,2583.0,2581.3,0.0161]
[1748012172044,0.7918,2582.2,2581.3,0.0161]
[1748012172288,3.87360773,2581.6,2581.4,43.976]
[1748012172584,3.87349011,2581.7,2581.5,15.637]
[1748012172794,0.7918,2582.2,2581.5,27.251]
[1748012172944,3.87322669,2581.9,2581.5,27.251]
[1748012173148,3.87312007,2581.9,2581.5,27.251]
[1748012173351,3.87299953,2582.0,2581.5,27.251]
[1748012173585,3.87329026,2581.8,2581.5,27.251]
[1748012173791,3.87356678,2581.6,2581.5,8.0]
[1748012173993,3.87371683,2581.5,2581.4,16.725]
[1748012174198,3.87371683,2581.5,2581.4,43.971]
[1748012174705,3.87371683,2581.5,2581.4,32.359]
[1748012175396,0.804,2581.9,2581.4,32.359]
[1748012176106,3.87371683,2581.5,2581.4,32.359]
[1748012177531,3.87371683,2581.5,2581.4,43.968]
[1748012177667,4.64844667,2581.5,2581.4,43.968]
[1748012177864,4.64844667,2581.5,2581.4,32.357]
[1748012178068,4.64844667,2581.5,2581.4,16.725]
[1748012178303,4.64844667,2581.5,2581.4,43.968]
[1748012178473,3.87371683,2581.5,2581.4,43.968]
[1748012179105,3.87352589,2581.7,2581.4,43.968]
[1748012179306,3.87350682,2581.7,2581.4,43.968]
[1748012179523,3.87350682,2581.7,2581.4,16.725]
[1748012179729,3.87191698,2582.7,2581.5,35.29683422]
[1748012179869,3.8733503,2581.8,2581.5,35.2581]
[1748012180073,3.87312622,2581.9,2581.6,27.241]
[1748012180274,3.87332051,2581.8,2581.6,27.241]
[1748012180777,3.87320182,2581.9,2581.6,27.241]
[1748012180975,0.7532,2582.8,2581.6,27.241]
[1748012181182,3.87311991,2581.9,2581.6,27.241]
[1748012181398,3.87328703,2581.8,2581.6,27.241]
[1748012181575,3.87328703,2581.8,2581.7,27.241]
[1748012182487,3.87356678,2581.6,2581.4,16.725]
[1748012182698,3.87356678,2581.6,2581.5,27.239]
[1748012182900,3.873309,2581.8,2581.5,27.239]
[1748012183122,3.87315285,2581.9,2581.6,27.239]
[1748012183419,3.87315816,2581.9,2581.6,27.239]
[1748012183826,3.87305213,2582.0,2581.6,27.239]
[1748012184322,3.87309553,2582.0,2581.6,27.239]
[1748012184497,3.87311669,2581.9,2581.7,11.609]
[1748012184692,3.87326671,2581.8,2581.7,11.609]
[1748012184904,3.87371683,2581.5,2581.4,16.725]
[1748012185079,3.87371683,2581.5,2581.4,43.964]
[1748012185478,0.46930955,2582.0,2581.4,43.964]
[1748012185682,3.87371683,2581.5,2581.4,43.964]
[1748012185919,3.87371683,2581.5,2581.4,32.354]
[1748012187418,4.67471683,2581.5,2581.4,16.725]
[1748012187584,4.67471683,2581.5,2581.4,32.354]
[1748012187788,5.22471683,2581.5,2581.4,16.725]
[1748012188021,6.36704804,2581.5,2581.4,16.725]
[1748012188199,6.36704804,2581.5,2581.4,32.354]
[1748012188516,4.68051696,2581.3,2581.2,15.629]
[1748012188715,4.68051696,2581.3,2580.4,11.608]
[1748012188716,3.8751869,2580.6,2580.4,11.608]
[1748012188921,3.8751869,2580.6,2580.5,15.63]
[1748012191803,3.8749852,2580.7,2580.5,15.63]
[1748012192015,3.87506781,2580.6,2580.5,15.63]
[1748012193030,3.87490112,2580.8,2580.5,15.63]
[1748012193235,3.87491765,2580.7,2580.5,15.6461]
[1748012193902,3.87506781,2580.6,2580.5,15.6461]
[1748012194918,0.819,2581.4,2579.9,3.87606766]
[1748012195136,3.87327792,2581.8,2580.5,3.87507957]
[1748012195345,3.87441571,2581.1,2580.6,3.87499365]
[1748012195506,3.87453498,2581.0,2580.3,6.03]
[1748012195847,3.87483291,2580.8,2580.3,3.87544894]
[1748012196009,3.87503309,2580.7,2580.2,3.87563197]
[1748012196211,3.87503309,2580.7,2580.3,43.963]
[1748012196567,3.87503309,2580.7,2580.4,27.243]
[1748012196711,3.87471546,2580.9,2580.4,31.11830153]
[1748012197057,3.87476985,2580.8,2580.4,27.243]
[1748012197463,3.87498798,2580.7,2580.4,27.243]
[1748012197667,3.87506781,2580.6,2580.5,15.632]
[1748012197862,3.87536815,2580.4,2580.3,16.72]
[1748012198026,3.87536815,2580.4,2580.3,32.352]
[1748012201537,3.87475749,2580.9,2580.3,32.352]
[1748012201737,3.87536815,2580.4,2580.3,32.352]
[1748012203540,4.67356815,2580.4,2580.3,43.963]
[1748012203730,4.67356815,2580.4,2580.3,32.352]
[1748012205679,0.8235,2579.8,2579.5,16.721]
[1748012205844,3.87657001,2579.6,2579.5,16.721]
[1748012206048,3.87657001,2579.6,2579.5,32.338]
[1748012208155,3.87657001,2579.6,2579.5,16.721]
[1748012208359,3.87657001,2579.6,2579.5,43.953]
[1748012208782,3.87649262,2579.7,2579.5,43.953]
[1748012208956,3.87635774,2579.8,2579.5,43.953]
[1748012209277,3.87643061,2579.7,2579.5,43.953]
[1748012209483,3.87632278,2579.8,2579.5,43.953]
[1748012209679,3.87624037,2579.9,2579.5,43.953]
[1748012209680,3.87618978,2579.9,2579.5,43.953]
[1748012209979,3.87621881,2579.9,2579.5,43.953]
[1748012210278,3.8763463,2579.8,2579.5,43.953]
[1748012210659,3.87634389,2579.8,2579.5,43.953]
[1748012210864,3.87566855,2580.2,2579.6,3.87647133]
[1748012211081,3.87621824,2579.9,2579.5,43.953]
[1748012211262,3.87621824,2579.9,2579.5,16.721]
[1748012211458,3.87632774,2579.8,2579.6,27.234]
[1748012211985,3.87641973,2579.7,2579.6,15.62]
[1748012212168,3.87641973,2579.7,2579.6,27.234]
[1748012213258,3.87558862,2580.3,2579.6,27.234]
[1748012213678,3.87536815,2580.4,2579.6,27.234]
[1748012214048,3.87608282,2580.0,2579.6,27.234]
[1748012214249,3.87536815,2580.4,2579.6,27.234]
[1748012214250,3.87641973,2579.7,2579.6,27.234]
[1748012214683,3.87622487,2579.9,2579.6,27.234]
[1748012214998,0.8252,2580.5,2579.7,27.234]
[1748012214999,3.87627947,2579.8,2579.7,27.234]
[1748012216188,3.87626947,2579.8,2579.7,27.235]
[1748012216368,3.87657001,2579.6,2579.5,16.721]
[1748012216567,3.87657001,2579.6,2579.5,43.956]
[1748012217106,3.87657001,2579.6,2579.5,32.342]
[1748012217405,4.65187194,2579.6,2579.5,43.956]
[1748012217965,3.87657001,2579.6,2579.5,43.956]
[1748012219112,3.87657001,2579.6,2579.5,32.342]
[1748012219406,3.87657001,2579.6,2579.5,43.957]
[1748012220185,3.87657001,2579.6,2579.5,32.342]
[1748012220386,4.69907001,2579.6,2579.5,32.342]
[1748012220632,5.55662194,2579.6,2579.5,32.342]
[1748012221547,7.88162194,2579.6,2579.5,16.721]
[1748012221742,7.88162194,2579.6,2579.5,32.344]
[1748012222035,5.55662194,2579.6,2579.5,32.344]
[1748012223394,13.55662194,2579.6,2579.5,32.344]
[1748012223794,5.55662194,2579.6,2579.5,32.344]
[1748012224435,5.55662194,2579.6,2579.5,16.721]
[1748012224600,5.55662194,2579.6,2579.5,32.345]
[1748012227536,5.55662194,2579.6,2579.5,16.721]
[1748012227722,5.55662194,2579.6,2579.5,32.346]
[1748012227921,8.43162194,2579.6,2579.5,16.721]
[1748012228214,3.87822377,2578.5,2578.4,16.729]
[1748012228757,3.87822377,2578.5,2578.4,32.354]
[1748012229162,3.87822377,2578.5,2578.4,16.729]
[1748012229454,3.87822377,2578.5,2578.4,32.354]
[1748012231558,3.87822377,2578.5,2578.4,16.729]
[1748012231760,4.65385612,2578.5,2578.4,43.975]
[1748012232270,3.87913593,2577.9,2577.4,3.87979973]
[1748012232563,3.8785246,2578.3,2577.5,19.48869624]
[1748012232726,4.6812173,2578.4,2577.5,19.48864056]
[1748012232930,4.6812173,2578.4,2577.5,15.609]
[1748012232931,3.8791727,2577.9,2577.5,15.609]
[1748012233567,3.87912642,2577.9,2577.5,15.609]
[1748012233733,3.8785246,2578.3,2577.6,11.62]
[1748012233933,3.8785246,2578.3,2577.5,15.609]
[1748012233934,3.8795779,2577.6,2577.5,15.609]
[1748012234233,3.8795779,2577.6,2577.5,27.229]
[1748012234419,3.8785246,2578.3,2577.5,27.229]
[1748012234622,3.87937872,2577.8,2577.5,27.229]
[1748012234935,3.87935502,2577.8,2577.5,27.229]
[1748012235323,4.34681862,2578.2,2577.5,27.229]
[1748012235525,3.87950325,2577.7,2577.5,27.229]
[1748012235726,3.87950325,2577.7,2577.3,11.87999237]
[1748012235923,0.8028,2578.4,2577.6,27.23]
[1748012236171,3.87809434,2578.6,2578.0,3.87888704]
[1748012236480,8.0,2579.4,2578.0,3.87888704]
[1748012236481,3.87727994,2579.2,2578.5,3.87817161]
[1748012236708,3.87727994,2579.2,2578.0,0.40571995]
[1748012236709,0.8231,2579.4,2578.6,27.232]
[1748012236854,3.87719135,2579.2,2578.7,47.84685128]
[1748012237057,3.87658407,2579.6,2578.7,43.969]
[1748012237393,3.87687059,2579.4,2578.7,43.969]
[1748012237687,3.8776896,2578.9,2578.7,43.969]
[1748012237989,3.87740143,2579.1,2578.7,43.969]
[1748012238199,3.87756405,2579.0,2578.7,43.969]
[1748012238866,3.87773975,2578.9,2578.7,43.969]
[1748012239069,3.8777726,2578.8,2578.7,43.969]
[1748012239392,3.8777726,2578.8,2578.7,16.735]
[1748012239895,3.8777726,2578.8,2578.7,43.967]
[1748012240702,3.8777726,2578.8,2578.7,32.346]
[1748012242594,5.42361452,2578.8,2578.7,16.735]
[1748012242801,5.42361452,2578.8,2578.7,32.346]
[1748012243559,3.8777726,2578.8,2578.7,32.346]
[1748012245628,3.87752396,2579.0,2578.7,15.611]
[1748012245789,0.82,2579.4,2578.3,8.0]
[1748012246113,3.87807337,2578.6,2578.5,8.0]
[1748012246273,3.87807337,2578.6,2578.5,24.734]
[1748012246479,3.87807337,2578.6,2578.5,32.345]
[1748012247574,3.87807337,2578.6,2578.5,43.966]
[1748012248213,3.87807337,2578.6,2578.5,32.345]
[1748012248419,3.87807337,2578.6,2578.5,43.966]
[1748012248581,4.65367524,2578.6,2578.5,32.345]
[1748012250011,3.87807337,2578.6,2578.5,32.345]
[1748012250498,3.87807337,2578.6,2578.5,16.734]
[1748012250702,3.87807337,2578.6,2578.5,32.345]
[1748012252624,3.87807337,2578.6,2578.5,16.734]
[1748012252815,3.87807337,2578.6,2578.5,32.346]
[1748012253631,3.87807337,2578.6,2578.5,16.734]
[1748012253831,3.87807337,2578.6,2578.5,32.346]
[1748012254302,4.65367602,2578.6,2578.5,32.346]
[1748012254503,3.87807337,2578.6,2578.5,32.346]
[1748012255102,0.7617,2578.9,2578.5,32.346]
[1748012255325,3.87807337,2578.6,2578.5,32.346]
[1748012255551,3.87807337,2578.6,2578.5,43.968]
[1748012256511,3.87807337,2578.6,2578.5,32.346]
[1748012256712,5.40397559,2578.6,2578.5,32.346]
[1748012257097,7.72897559,2578.6,2578.5,32.346]
[1748012257807,7.72897559,2578.6,2577.4,8.0]
[1748012258042,3.87970765,2577.6,2577.5,27.235]
[1748012258532,0.7545,2578.2,2577.5,27.235]
[1748012258533,3.87884294,2578.1,2577.5,27.235]
[1748012258697,3.87954718,2577.7,2577.2,11.88015441]
[1748012258896,3.87973056,2577.5,2577.4,8.0]
[1748012259133,3.87951991,2577.7,2577.4,8.0]
[1748012259722,3.87942739,2577.7,2577.4,8.0]
[1748012259922,3.87965658,2577.6,2577.4,8.0]
[1748012260111,3.87949828,2577.7,2577.4,8.0]
[1748012260314,3.87949828,2577.7,2577.5,27.236]
[1748012260639,3.8795779,2577.6,2577.5,27.236]
[1748012261024,3.8795021,2577.7,2577.5,27.236]
[1748012261624,3.8795021,2577.7,2577.5,15.614]
[1748012261625,3.8795779,2577.6,2577.5,15.614]
[1748012261931,0.8135,2577.1,2575.5,1.52028443]
[1748012262245,3.88213828,2575.9,2575.8,16.81022754]
[1748012262702,3.88213828,2575.9,2575.8,1.21622754]
[1748012262904,3.88213828,2575.9,2575.8,15.594]
[1748012263429,0.8135,2576.2,2575.8,15.594]
[1748012263430,3.88212913,2576.0,2575.8,15.594]
[1748012263604,3.88213828,2575.9,2575.8,15.594]
[1748012264312,3.88213828,2575.9,2575.7,0.6643]
[1748012264521,4.9901856,2576.6,2575.8,15.598]
[1748012264704,4.68238757,2576.0,2575.9,15.598]
[1748012264901,3.88253344,2575.7,2575.4,0.6643]
[1748012265103,3.88253344,2575.7,2575.6,8.0]
[1748012265347,3.88253344,2575.7,2575.5,15.598]
[1748012265348,3.88259046,2575.6,2575.5,15.598]
[1748012266060,3.88259046,2575.6,2575.0,0.6643]
[1748012266211,3.88329862,2575.2,2575.1,43.966]
[1748012266557,3.88329862,2575.2,2575.1,33.30613486]
[1748012266907,3.8829797,2575.4,2575.1,33.30613486]
[1748012267109,3.88294256,2575.4,2575.1,33.30613486]
[1748012267409,3.88312769,2575.3,2575.1,17.70813486]
[1748012267609,3.88294256,2575.4,2575.2,15.602]
[1748012267610,3.88293002,2575.4,2575.2,15.602]
[1748012267829,3.8829107,2575.4,2575.2,15.602]
[1748012268029,3.88304275,2575.3,2575.2,15.602]
[1748012268206,3.88319353,2575.2,2575.1,0.96613486]
[1748012268408,3.88319353,2575.2,2575.1,33.31313486]
[1748012268933,3.88312031,2575.3,2575.1,33.31313486]
[1748012269144,3.88312031,2575.3,2575.2,15.602]